Workbook

Sheet TableS5_R1
B1: miRNA** | C1: Expression level (RPM) in each treatment* | F1: Fold changes
C2: P1 | D2: P2 | E2: P3 | F2: P2/P1 | G2: P2/P3
A3: 1 | B3: miR156/157.4 | C3: 1020.264662 | D3: 1636.809008 | E3: 1115.495592 | F3: =D3/C3 -> 1.604298442 | G3: =D3/E3 -> 1.467337944
A4: 2 | B4: miR159.1 | C4: 8363.412758 | D4: 14381.80899 | E4: 8891.434174 | F4: =D4/C4 -> 1.719610092 | G4: =D4/E4 -> 1.617490351
A5: 3 | B5: miR160.1 | C5: 2.297893383 | D5: 17.41286179 | E5: 4.539147881 | F5: =D5/C5 -> 7.577750088 | G5: =D5/E5 -> 3.836152125
A6: 4 | B6: miR162.1 | C6: 316.6497082 | D6: 469.742318 | E6: 491.3627581 | F6: =D6/C6 -> 1.483476238 | G6: =D6/E6 -> 0.9559990257
A7: 5 | B7: miR164.1 | C7: 210.9466126 | D7: 432.0819425 | E7: 252.3009697 | F7: =D7/C7 -> 2.048299981 | G7: =D7/E7 -> 1.712565524
A8: 6 | B8: miR164.2 | C8: 4.595786767 | D8: 10.12375685 | E8: 9.834820409 | F8: =D8/C8 -> 2.202834328 | G8: =D8/E8 -> 1.029378924
A9: 7 | B9: miR165/166.1 | C9: 825.8628819 | D9: 1342.005208 | E9: 1644.30632 | F9: =D9/C9 -> 1.624973392 | G9: =D9/E9 -> 0.8161528009
A10: 8 | B10: miR167.2 | C10: 2292.838018 | D10: 3347.318966 | E10: 2846.802246 | F10: =D10/C10 -> 1.459902069 | G10: =D10/E10 -> 1.175817172
A11: 9 | B11: miR168.1 | C11: 1276.249985 | D11: 1657.461472 | E11: 1272.096194 | F11: =D11/C11 -> 1.298696565 | G11: =D11/E11 -> 1.302937215
A12: 10 | B12: miR169.2 | C12: 32.17050737 | D12: 15.38811042 | E12: 26.85662496 | F12: =D12/C12 -> 0.4783297398 | G12: =D12/E12 -> 0.5729726069
A13: 11 | B13: miR171.1 | C13: 130.9799228 | D13: 238.9206617 | E13: 181.9441776 | F13: =D13/C13 -> 1.824101408 | G13: =D13/E13 -> 1.313153655
A14: 12 | B14: miR171.2 | C14: 125.4649787 | D14: 198.0206841 | E14: 133.9048625 | F14: =D14/C14 -> 1.578294486 | G14: =D14/E14 -> 1.478816231
A15: 13 | B15: miR171.4 | C15: 90.5369993 | D15: 221.1028497 | E15: 183.4572269 | F15: =D15/C15 -> 2.442126991 | G15: =D15/E15 -> 1.205201089
A16: 14 | B16: miR172.2 | C16: 16.54483236 | D16: 27.53661864 | E16: 19.29137849 | F16: =D16/C16 -> 1.664363714 | G16: =D16/E16 -> 1.427405442
A17: 15 | B17: miR172.4 | C17: 51.01323311 | D17: 93.9484636 | E17: 81.32639953 | F17: =D17/C17 -> 1.84164888 | G17: =D17/E17 -> 1.155202544
A18: 16 | B18: miR319.1 | C18: 422.3528038 | D18: 225.1523524 | E18: 386.9623568 | F18: =D18/C18 -> 0.5330907013 | G18: =D18/E18 -> 0.58184562
A19: 17 | B19: miR319.2 | C19: 212.7849273 | D19: 185.0622753 | E19: 228.092181 | F19: =D19/C19 -> 0.8697151515 | G19: =D19/E19 -> 0.8113486155
A20: 18 | B20: miR319.3 | C20: 25.27682722 | D20: 17.00791151 | E20: 21.93921476 | F20: =D20/C20 -> 0.6728657584 | G20: =D20/E20 -> 0.7752288175
A21: 19 | B21: miR390.1 | C21: 14.24693898 | D21: 14.98316014 | E21: 17.40006688 | F21: =D21/C21 -> 1.051675744 | G21: =D21/E21 -> 0.861097848
A22: 20 | B22: miR391.2 | C22: 942.5958658 | D22: 270.5067831 | E22: 966.081974 | F22: =D22/C22 -> 0.2869806594 | G22: =D22/E22 -> 0.2800039649
A23: 21 | B23: miR393.2 | C23: 181.5335773 | D23: 164.4098113 | E23: 414.1972441 | F23: =D23/C23 -> 0.9056716326 | G23: =D23/E23 -> 0.3969360338
A24: 22 | B24: miR393.3 | C24: 4.13620809 | D24: 4.454453015 | E24: 10.21308273 | F24: =D24/C24 -> 1.076941227 | G24: =D24/E24 -> 0.4361516628
A25: 23 | B25: miR394.1 | C25: 21.6001978 | D25: 38.47027604 | E25: 33.28708446 | F25: =D25/C25 -> 1.781014989 | G25: =D25/E25 -> 1.155711792
A26: 24 | B26: miR396.1 | C26: 527.5963208 | D26: 631.3174774 | E26: 851.0902277 | F26: =D26/C26 -> 1.196591888 | G26: =D26/E26 -> 0.7417750279
A27: 25 | B27: miR396.2 | C27: 638.3547819 | D27: 1508.439771 | E27: 1585.297397 | F27: =D27/C27 -> 2.363011626 | G27: =D27/E27 -> 0.9515184808
A28: 26 | B28: miR396.3 | C28: 3447.299654 | D28: 3291.030878 | E28: 5658.804358 | F28: =D28/C28 -> 0.9546692219 | G28: =D28/E28 -> 0.5815770735
A29: 27 | B29: miR397.1 | C29: 5.055365443 | D29: 17.81781206 | E29: 5.673934851 | F29: =D29/C29 -> 3.524534925 | G29: =D29/E29 -> 3.140291972
A30: 28 | B30: miR397.2 | C30: 111.6776184 | D30: 351.0918877 | E30: 113.478697 | F30: =D30/C30 -> 3.143798127 | G30: =D30/E30 -> 3.093901295
A31: 29 | B31: miR398.1 | C31: 2.75747206 | D31: 50.61878427 | E31: 8.700033438 | F31: =D31/C31 -> 18.35695273 | G31: =D31/E31 -> 5.818228703
A32: 30 | B32: miR398.2 | C32: 6.89368015 | D32: 36.85047495 | E32: 13.23918132 | F32: =D32/C32 -> 5.345544636 | G32: =D32/E32 -> 2.783440611
A33: 31 | B33: miR403.1 | C33: 43.20039561 | D33: 39.28017659 | E33: 85.86554741 | F33: =D33/C33 -> 0.9092550205 | G33: =D33/E33 -> 0.4574614356
A34: 32 | B34: miR482.1 | C34: 0.9191573533 | D34: 10.12375685 | E34: 9.078295762 | F34: =D34/C34 -> 11.01417164 | G34: =D34/E34 -> 1.115160501
A35: 33 | B35: miR827.1 | C35: 24.81724854 | D35: 8.099005483 | E35: 20.04790314 | F35: =D35/C35 -> 0.3263458264 | G35: =D35/E35 -> 0.4039826722
A36: 34 | B36: miR1919.1 | C36: 6.89368015 | D36: 11.74355795 | E36: 7.186984145 | F36: =D36/C36 -> 1.703525214 | G36: =D36/E36 -> 1.634003598
A37: 35 | B37: miR4376.1 | C37: 574.4733458 | D37: 154.6910047 | E37: 322.2794995 | F37: =D37/C37 -> 0.2692744682 | G37: =D37/E37 -> 0.4799902102
A38: 36 | B38: miR6019.1 | C38: 3780.953773 | D38: 3672.898986 | E38: 4243.725006 | F38: =D38/C38 -> 0.9714212887 | G38: =D38/E38 -> 0.8654893946
A39: 37 | B39: miR6020.1 | C39: 35.84713678 | D39: 16.60296124 | E39: 29.88272355 | F39: =D39/C39 -> 0.4631600382 | G39: =D39/E39 -> 0.5556040169
A40: 38 | B40: miR6025.1 | C40: 119.9500346 | D40: 98.80786689 | E40: 206.1529663 | F40: =D40/C40 -> 0.823741879 | G40: =D40/E40 -> 0.4792939373
A41: 39 | B41: miR6147.1 | C41: 7.353258826 | D41: 12.5534585 | E41: 16.26527991 | F41: =D41/C41 -> 1.707196604 | G41: =D41/E41 -> 0.7717948028
A42: 40 | B42: miR6149.1 | C42: 2365.451449 | D42: 1711.724809 | E42: 2041.860022 | F42: =D42/C42 -> 0.7236355706 | G42: =D42/E42 -> 0.8383164323
A43: 41 | B43: miR6155.1 | C43: 14.70651765 | D43: 10.52870713 | E43: 8.321771115 | F43: =D43/C43 -> 0.7159211566 | G43: =D43/E43 -> 1.265200278
A44: 42 | B44: miR6155.2 | C44: 28.49387795 | D44: 40.49502741 | E44: 32.90882214 | F44: =D44/C44 -> 1.421183437 | G44: =D44/E44 -> 1.230521933
A45: 43 | B45: miR7122.1 | C45: 6273.248936 | D45: 7706.203717 | E45: 5720.082855 | F45: =D45/C45 -> 1.22842307 | G45: =D45/E45 -> 1.347218897
A46: 44 | B46: Nbe-miR2 | C46: 26.19598457 | D46: 4.454453015 | E46: 12.48265667 | F46: =D46/C46 -> 0.1700433516 | G46: =D46/E46 -> 0.3568513604
A47: 45 | B47: Nbe-miR3a | C47: 21.6001978 | D47: 3.239602193 | E47: 7.186984145 | F47: =D47/C47 -> 0.1499802096 | G47: =D47/E47 -> 0.4507596132
A48: 46 | B48: Nbe-miR3b | C48: 19.30230442 | D48: 4.454453015 | E48: 7.943508792 | F48: =D48/C48 -> 0.2307731201 | G48: =D48/E48 -> 0.5607664235
A49: 47 | B49: Nbe-miR4 | C49: 24.81724854 | D49: 6.479204386 | E49: 12.10439435 | F49: =D49/C49 -> 0.2610766611 | G49: =D49/E49 -> 0.5352770407
A50: 48 | B50: Nbe-miR6 | C50: 5.51494412 | D50: 15.38811042 | E50: 7.186984145 | F50: =D50/C50 -> 2.790256815 | G50: =D50/E50 -> 2.141108163
A51: 49 | B51: Nbe-miR7 | C51: 3.676629413 | D51: 3.644552467 | E51: 10.21308273 | F51: =D51/C51 -> 0.9912754476 | G51: =D51/E51 -> 0.3568513604
A52: 50 | B52: Nbe-miR8 | C52: 11.02988824 | D52: 25.91681754 | E52: 12.860919 | F52: =D52/C52 -> 2.34968995 | G52: =D52/E52 -> 2.015160624
A53: 51 | B53: Nbe-miR11 | C53: 51.01323311 | D53: 42.51977878 | E53: 34.04360911 | F53: =D53/C53 -> 0.8335048808 | G53: =D53/E53 -> 1.248979762
A54: 52 | B54: Nbe-miR13 | C54: 795.0711106 | D54: 569.7650357 | E54: 638.8850642 | F54: =D54/C54 -> 0.7166214796 | G54: =D54/E54 -> 0.8918114816
A55: 53 | B55: Nbe-miR14 | C55: 43.20039561 | D55: 34.82572358 | E55: 45.01321649 | F55: =D55/C55 -> 0.8061436264 | G55: =D55/E55 -> 0.7736777394
A56: 54 | B56: Nbe-miR17 | C56: 10.11073089 | D56: 15.38811042 | E56: 12.48265667 | F56: =D56/C56 -> 1.521958263 | G56: =D56/E56 -> 1.232759245
A57: 55 | B57: Nbe-miR18 | C57: 18.38314707 | D57: 21.46236453 | E57: 14.37396829 | F57: =D57/C57 -> 1.167502194 | G57: =D57/E57 -> 1.493141219
A58: 56 | B58: Nbe-miR20 | C58: 17.00441104 | D58: 17.81781206 | E58: 23.45226405 | F58: =D58/C58 -> 1.047834707 | G58: =D58/E58 -> 0.7597480577
A59: 57 | B59: Nbe-miR33 | C59: 54.23028384 | D59: 37.25542522 | E59: 59.38718478 | F59: =D59/C59 -> 0.6869856209 | G59: =D59/E59 -> 0.627331054
A60: 58 | B60: Nbe-miR37 | C60: 11.02988824 | D60: 9.313856305 | E60: 6.808721821 | F60: =D60/C60 -> 0.8444198257 | G60: =D60/E60 -> 1.367930215
A61: 59 | B61: Nbe-miR40 | C61: 43.65997428 | D61: 36.0405744 | E61: 46.14800346 | F61: =D61/C61 -> 0.8254831797 | G61: =D61/E61 -> 0.7809779774
A62: 60 | B62: Nbe-miR48 | C62: 33.08966472 | D62: 31.18117111 | E62: 36.69144537 | F62: =D62/C62 -> 0.9423235736 | G62: =D62/E62 -> 0.849821281
A63: 61 | B63: Nbe-miR50 | C63: 5.055365443 | D63: 12.5534585 | E63: 8.321771115 | F63: =D63/C63 -> 2.483195061 | G63: =D63/E63 -> 1.508508024
A64: 62 | B64: Nbe-miR51 | C64: 14.70651765 | D64: 18.62771261 | E64: 17.7783292 | F64: =D64/C64 -> 1.266629739 | G64: =D64/E64 -> 1.047776335
A65: 63 | B65: Nbe-miR52 | C65: 12.40862427 | D65: 19.03266288 | E65: 13.23918132 | F65: =D65/C65 -> 1.533825384 | G65: =D65/E65 -> 1.437601195
A66: 64 | B66: Nbe-miR53 | C66: 85.48163386 | D66: 57.9078892 | E66: 86.24380974 | F66: =D66/C66 -> 0.6774307718 | G66: =D66/E66 -> 0.6714440071
A67: 65 | B67: Nbe-miR55 | C67: 18.84272574 | D67: 10.9336574 | E67: 8.700033438 | F67: =D67/C67 -> 0.5802587986 | G67: =D67/E67 -> 1.2567374
A68: 66 | B68: Nbe-miR57 | C68: 12.86820295 | D68: 6.074254112 | E68: 8.700033438 | F68: =D68/C68 -> 0.4720359274 | G68: =D68/E68 -> 0.6981874443
A69: 67 | B69: Nbe-miR58 | C69: 9.191573533 | D69: 14.98316014 | E69: 7.565246468 | F69: =D69/C69 -> 1.630097403 | G69: =D69/E69 -> 1.98052505
A70: 68 | B70: Nbe-miR62 | C70: 35.84713678 | D70: 31.99107166 | E70: 56.36108619 | F70: =D70/C70 -> 0.8924303175 | G70: =D70/E70 -> 0.5676092109
A71: 69 | B71: Nbe-miR64 | C71: 5.055365443 | D71: 10.52870713 | E71: 5.295672528 | F71: =D71/C71 -> 2.082679728 | G71: =D71/E71 -> 1.988171865
A72: 70 | B72: Nbe-miR66 | C72: 7.812837503 | D72: 19.03266288 | E72: 12.10439435 | F72: =D72/C72 -> 2.43607561 | G72: =D72/E72 -> 1.572376307
A73: 71 | B73: Nbe-miR67 | C73: 8.27241618 | D73: 13.76830932 | E73: 17.02180455 | F73: =D73/C73 -> 1.664363714 | G73: =D73/E73 -> 0.8088630837
A74: 72 | B74: Nbe-miR68 | C74: 3.676629413 | D74: 7.694055208 | E74: 11.72613203 | F74: =D74/C74 -> 2.092692612 | G74: =D74/E74 -> 0.6561460498
A75: 73 | B75: Nbe-miR70 | C75: 27.11514192 | D75: 57.50293893 | E75: 22.31747708 | F75: =D75/C75 -> 2.120694743 | G75: =D75/E75 -> 2.576587789
A76: 74 | B76: Nbe-miR71 | C76: 8.731994856 | D76: 10.12375685 | E76: 7.186984145 | F76: =D76/C76 -> 1.159386488 | G76: =D76/E76 -> 1.408623791
A77: 75 | B77: Nbe-miR73 | C77: 17.00441104 | D77: 22.27226508 | E77: 13.23918132 | F77: =D77/C77 -> 1.309793384 | G77: =D77/E77 -> 1.682299271
A78: 76 | B78: Nbe-miR76 | C78: 13.7873603 | D78: 9.313856305 | E78: 9.456558085 | F78: =D78/C78 -> 0.6755358606 | G78: =D78/E78 -> 0.9849097548
A79: 77 | B79: Nbe-miR77 | C79: 28.03429928 | D79: 30.77622083 | E79: 28.74793658 | F79: =D79/C79 -> 1.09780596 | G79: =D79/E79 -> 1.070554081
A80: 78 | B80: Nbe-miR78 | C80: 9.191573533 | D80: 11.33860768 | E80: 8.321771115 | F80: =D80/C80 -> 1.233587224 | G80: =D80/E80 -> 1.362523376
A81: 79 | B81: Nbe-miR79 | C81: 40.44292355 | D81: 26.32176782 | E81: 27.23488729 | F81: =D81/C81 -> 0.6508374151 | G81: =D81/E81 -> 0.9664724345
A82: 80 | B82: Nbe-miR80 | C82: 37.68545149 | D82: 27.53661864 | E82: 33.28708446 | F82: =D82/C82 -> 0.7306962649 | G82: =D82/E82 -> 0.8272463356
A83: 81 | B83: Nbe-miR81 | C83: 94.21362871 | D83: 55.88313783 | E83: 72.24810377 | F83: =D83/C83 -> 0.5931534386 | G83: =D83/E83 -> 0.7734893362
A84: 82 | B84: Nbe-miR84 | C84: 3.217050737 | D84: 10.9336574 | E84: 5.673934851 | F84: =D84/C84 -> 3.398658677 | G84: =D84/E84 -> 1.926997346
A85: 83 | B85: Nbe-miR86 | C85: 13.7873603 | D85: 13.36335905 | E85: 14.37396829 | F85: =D85/C85 -> 0.9692471043 | G85: =D85/E85 -> 0.9296917022
A86: 84 | B86: Nbe-miR87 | C86: 13.7873603 | D86: 9.313856305 | E86: 17.02180455 | F86: =D86/C86 -> 0.6755358606 | G86: =D86/E86 -> 0.547172086
A87: 85 | B87: Nbe-miR88 | C87: 8.731994856 | D87: 10.12375685 | E87: 7.565246468 | F87: =D87/C87 -> 1.159386488 | G87: =D87/E87 -> 1.338192602
A88: 86 | B88: Nbe-miR89 | C88: 16.08525368 | D88: 8.099005483 | E88: 12.860919 | F88: =D88/C88 -> 0.5035049892 | G88: =D88/E88 -> 0.6297376949
A89: 87 | B89: Nbe-miR94 | C89: 24.81724854 | D89: 34.82572358 | E89: 31.77403517 | F89: =D89/C89 -> 1.403287053 | G89: =D89/E89 -> 1.096043464
A90: 88 | B90: Nbe-miR95 | C90: 28.95345663 | D90: 37.25542522 | E90: 38.58275699 | F90: =D90/C90 -> 1.286734973 | G90: =D90/E90 -> 0.9655977988
A91: 89 | B91: Nbe-miR99 | C91: 11.94904559 | D91: 41.70987824 | E91: 19.29137849 | F91: =D91/C91 -> 3.490645166 | G91: =D91/E91 -> 2.162099419
A92: 90 | B92: Nbe-miR100 | C92: 7.812837503 | D92: 10.52870713 | E92: 10.96960738 | F92: =D92/C92 -> 1.347616295 | G92: =D92/E92 -> 0.9598071074
A93: 91 | B93: Nbe-miR101 | C93: 34.00882207 | D93: 36.85047495 | E93: 28.36967426 | F93: =D93/C93 -> 1.083556345 | G93: =D93/E93 -> 1.298938952
A94: 92 | B94: Nbe-miR107 | C94: 2.75747206 | D94: 25.106917 | E94: 3.782623234 | F94: =D94/C94 -> 9.105048556 | G94: =D94/E94 -> 6.637435304
A95: 93 | B95: Nbe-miR108 | C95: 10.57030956 | D95: 10.12375685 | E95: 12.10439435 | F95: =D95/C95 -> 0.9577540556 | G95: =D95/E95 -> 0.836370376
A96: 94 | B96: Nbe-miR110 | C96: 22.51935516 | D96: 18.22276234 | E96: 20.42616546 | F96: =D96/C96 -> 0.809204447 | G96: =D96/E96 -> 0.8921284011
A97: 95 | B97: Nbe-miR116 | C97: 450.8466818 | D97: 341.3730811 | E97: 465.6409201 | F97: =D97/C97 -> 0.7571821971 | G97: =D97/E97 -> 0.7331251751
A98: 96 | B98: Nbe-miR118 | C98: 17.92356839 | D98: 27.53661864 | E98: 12.860919 | F98: =D98/C98 -> 1.536335736 | G98: =D98/E98 -> 2.141108163
A99: 97 | B99: Nbe-miR119 | C99: 10.57030956 | D99: 6.479204386 | E99: 16.64354223 | F99: =D99/C99 -> 0.6129625956 | G99: =D99/E99 -> 0.3892923932
A100: 98 | B100: Nbe-miR121 | C100: 10.57030956 | D100: 7.289104934 | E100: 9.834820409 | F100: =D100/C100 -> 0.6895829201 | G100: =D100/E100 -> 0.7411528255
A101: 99 | B101: Nbe-miR124 | C101: 13.32778162 | D101: 39.28017659 | E101: 18.15659152 | F101: =D101/C101 -> 2.947240411 | G101: =D101/E101 -> 2.163411373
A102: 100 | B102: Nbe-miR125 | C102: 24.35766986 | D102: 18.62771261 | E102: 29.88272355 | F102: =D102/C102 -> 0.764757578 | G102: =D102/E102 -> 0.6233606043
A103: 101 | B103: Nbe-miR127 | C103: 74.45174562 | D103: 74.91580071 | E103: 82.83944883 | F103: =D103/C103 -> 1.006232965 | G103: =D103/E103 -> 0.9043493381
A104: 102 | B104: Nbe-miR128 | C104: 85.48163386 | D104: 124.7246844 | E104: 106.6699752 | F104: =D104/C104 -> 1.459081662 | G104: =D104/E104 -> 1.169257649
A105: 103 | B105: Nbe-miR129 | C105: 6.89368015 | D105: 14.57820987 | E105: 4.917410204 | F105: =D105/C105 -> 2.114720955 | G105: =D105/E105 -> 2.964611302
A106: 104 | B106: Nbe-miR131 | C106: 58.36649193 | D106: 38.47027604 | E106: 65.43938195 | F106: =D106/C106 -> 0.6591157832 | G106: =D106/E106 -> 0.5878765186
A107: 105 | B107: Nbe-miR133 | C107: 43.20039561 | D107: 43.73462961 | E107: 58.2523978 | F107: =D107/C107 -> 1.012366415 | G107: =D107/E107 -> 0.7507781869
A108: 106 | B108: Nbe-miR134 | C108: 22.97893383 | D108: 63.57719304 | E108: 19.29137849 | F108: =D108/C108 -> 2.766759916 | G108: =D108/E108 -> 3.29562727
A109: 107 | B109: Nbe-miR136 | C109: 6.434101473 | D109: 7.289104934 | E109: 11.3478697 | F109: =D109/C109 -> 1.132886226 | G109: =D109/E109 -> 0.6423324488
A110: 108 | B110: Nbe-miR142 | C110: 16.54483236 | D110: 8.908906031 | E110: 16.64354223 | F110: =D110/C110 -> 0.5384706135 | G110: =D110/E110 -> 0.5352770407
A111: 109 | B111: Nbe-miR145 | C111: 258.2832163 | D111: 378.223556 | E111: 323.0360242 | F111: =D111/C111 -> 1.464375276 | G111: =D111/E111 -> 1.170840178
A112: 110 | B112: Nbe-miR146 | C112: 57.44733458 | D112: 34.82572358 | E112: 60.52197175 | F112: =D112/C112 -> 0.6062200071 | G112: =D112/E112 -> 0.5754228187
A113: 111 | B113: Nbe-miR152 | C113: 10.11073089 | D113: 11.33860768 | E113: 12.48265667 | F113: =D113/C113 -> 1.121442931 | G113: =D113/E113 -> 0.9083489175
A114: 112 | B114: Nbe-miR153 | C114: 13.7873603 | D114: 9.718806579 | E114: 6.052197175 | F114: =D114/C114 -> 0.7049069849 | G114: =D114/E114 -> 1.605831122
A115: 113 | B115: Nbe-miR156 | C115: 339.628642 | D115: 213.4087945 | E115: 301.0968094 | F115: =D115/C115 -> 0.6283592373 | G115: =D115/E115 -> 0.7087713579
A116: 114 | B116: Nbe-miR157 | C116: 45.03871031 | D116: 42.11482851 | E116: 36.31318305 | F116: =D116/C116 -> 0.9350806943 | G116: =D116/E116 -> 1.159766921
A117: 115 | B117: Nbe-miR160 | C117: 233.9255464 | D117: 206.5246398 | E117: 180.0528659 | F117: =D117/C117 -> 0.8828648387 | G117: =D117/E117 -> 1.14702223
A118: *The N. benthamiana plant leaves systemically infected with TYLCCNV alone (P1), or together with betasatellite TYLCCNB (P2) or with mutant TYLCCNB (P3) were harvested for RNA extraction and small RNA sequencing.Expression data were normalized by per million reads. Only those miRNAs with a RPM >10 in at least one sample were shown
A119: ** miRNAs with P2/P1 and P2/P3 ≥1.70 or ≤ 0.60 or P2/P1 higher P2/P3 or P2/P1 lower P2/P3 more than 10-fold were highlighted in red and listed at Table 1.
